Cogmind - Beta 15 @@@ ROGUE MODE // 2025.09.27 @ 14:49:49 Player: Shifty Result: Destroyed by B-75 Beast with Heavy Plasma Cannon Performance ------------- Evolutions (3) 1500 Regions Visited (6) 1200 Robots Destroyed (69) 345 Value Destroyed (1889) 1889 Prototype IDs (1) 20 Alien Tech Used (0) 0 Bonus (0) 0 TOTAL SCORE: 4954 Bonus ------- None Cogmind --------- Core Integrity 0/700 Matter 290/300 Energy 296/300 System Corruption 3% Temperature Cool (12) Movement Core (50) Location -7/Lower Caves Parts ------- > --- POWER (2) -------- (None) > --- PROPULSION (3) --- (None) > --- UTILITY (5) ------ Compact Battery Improved Targeting Computer > --- WEAPON (3) ------- (None) > --- INVENTORY (5) ---- Particle Charger Recalibrator Peak State ------------ > --- POWER ------------ Light Nuclear Core Light Nuclear Core > --- PROPULSION ------- Carbon-fiber Leg Titanium Leg VSS Leg > --- UTILITY ---------- Cryofiber Web Advanced Weight Redist. System Improved Sensor Array Improved Targeting Computer Reaction Control System > --- WEAPON ----------- Advanced Beam Cannon Autogun Flak Cannon > --- INVENTORY -------- Improved Ion Engine Titanium Leg Small Storage Unit Particle Charger Light EM Pulse Cannon [Rating: 38] Favorites ----------- Power Light Nuclear Core Engine Improved Ion Engine Power Core Light Nuclear Core Propulsion Aluminum Leg Leg Aluminum Leg Hover Unit Hover Unit Utility Improved Targeting Computer Device Improved Sensor Array Storage Small Storage Unit Processor Improved Targeting Computer Protection Layered Light Armor Plating Weapon Advanced Beam Cannon Energy Gun Particle Gun Energy Cannon Advanced Beam Cannon Ballistic Gun Autogun Ballistic Cannon Light Cannon Build | -11 -10 -9 -9 -8 -7 -7 ------- Run | Yrd Mat Mat Min Mat Fac Low Slots Evolved 6 | . . 2 . 2 2 . Power 1 | . . . . . 1 . Propulsion 1 | . . . . 1 . . Utility 3 | . . 1 . 1 1 . Weapon 1 | . . 1 . . . . Parts Attached 45 | 6 2 13 3 15 5 1 Power 6 | 1 . 2 1 1 1 . Engine 3 | 1 . 2 . . . . Core 3 | . . . 1 1 1 . Reactor . | . . . . . . . Propulsion 14 | 2 . 3 . 8 1 . Treads . | . . . . . . . Leg 12 | 2 . 1 . 8 1 . Wheel . | . . . . . . . Hover 2 | . . 2 . . . . Flight . | . . . . . . . Utility 12 | 1 1 3 1 3 2 1 Device 5 | . . . . 3 2 . Storage 3 | 1 1 . . . . 1 Processor 2 | . . 2 . . . . Hackware . | . . . . . . . Protection 2 | . . 1 1 . . . Artifact . | . . . . . . . Weapon 13 | 2 1 5 1 3 1 . Energy Gun 4 | 1 . 3 . . . . Energy Cannon 2 | . . 1 . 1 . . Ballistic Gun 5 | 1 1 . 1 1 1 . Ballistic Cannon 2 | . . 1 . 1 . . Launcher . | . . . . . . . Special Weapon . | . . . . . . . Impact Weapon . | . . . . . . . Slashing Weapon . | . . . . . . . Piercing Weapon . | . . . . . . . Special Melee Weapon . | . . . . . . . Unidentified Prototypes 1 | . . . . 1 . . Corrupted Parts 1 | . . . . . 1 . System Corruption 1 | . . . . . 1 . Parts Lost 22 | . 1 2 . 3 15 1 Power 3 | . . . . . 3 . Propulsion 6 | . . 2 . . 4 . Utility 5 | . . . . 1 3 1 Weapon 8 | . 1 . . 2 5 . Highest Loss Streak 16 | . 1 1 . 2 15 16 To Critical Strikes . | . . . . . . . Average Backups 5 | 2 4 6 6 6 4 2 Power 1 | . 1 2 1 1 . . Propulsion 1 | . 2 2 2 1 . . Utility 1 | . . . 1 1 1 2 Weapon 1 | . . 1 2 2 . . Tool/Special . | . . . . . . . Unused Backups 9 | . . 5 1 1 . 2 Power 2 | . . 1 1 . . . Propulsion 4 | . . 3 . 1 . . Utility 2 | . . . . . . 2 Weapon 1 | . . 1 . . . . Tool/Special . | . . . . . . . Average Slot Usage (%) 89 | . 97 96 88 94 93 9 Engine 4 | . 14 11 6 . . . Core 6 | . . . 4 9 13 . Leg 16 | . 27 11 . 23 20 . Hover 3 | . . 9 11 . . . Device 8 | . . . . 5 27 . Storage 11 | . 26 18 11 10 . 1 Processor 7 | . . 9 11 9 7 7 Protection 3 | . . 3 11 7 . . Energy Gun 8 | . 14 17 11 6 . . Energy Cannon 4 | . . 3 4 7 6 . Ballistic Gun 7 | . 14 3 6 8 6 . Ballistic Cannon 5 | . . 7 11 3 6 . Peak Build Rating 38 | 6 7 14 19 33 38 5 Average Rating 20 | 4 6 12 15 26 35 2 On Entrance 11 | . 6 7 13 19 30 5 Naked Turns . | . . . . . . . Heaviest Build 30 | 13 14 23 24 29 30 1 Greatest Support 53 | 20 20 20 6 46 53 3 Greatest Overweight (x) 4 | . 1 3 3 3 4 . Average Overweight (x) . | . . . 3 . . . Largest Inventory Capacity 8 | 8 8 8 8 8 8 5 Average Capacity 7 | 7 8 8 8 8 5 5 Most Carried 8 | 4 8 8 8 8 5 3 Average Carried 5 | 2 4 6 7 6 4 2 Final Capacity 8 | 8 8 8 8 8 5 5 Final Carried 7 | 4 7 7 7 5 2 2 Class Distribution -------------------- 69% | Gunner 24% | Mutant 5% | Scavenger-Gunner Dominant Class ---------------- Mutant | -10/Materials Gunner | -9/Materials Gunner | -9/Mines Gunner | -8/Materials Gunner | -7/Factory Mutant | -7/Lower Caves Resources | -11 -10 -9 -9 -8 -7 -7 ----------- Run | Yrd Mat Mat Min Mat Fac Low Matter Collected 1321 | 227 172 253 30 305 334 . Remotely . | . . . . . . . Salvage Created 2045 | . 374 521 . 379 771 . Parts 138 | . 24 56 . 23 35 . Haulers Intercepted . | . . . . . . . Recyclers Shooed 1 | . . . . . 1 . Parts Field Recycled . | . . . . . . . Retrieved Matter . | . . . . . . . Parts Self-Destructed . | . . . . . . . Prevented . | . . . . . . . Kills | -11 -10 -9 -9 -8 -7 -7 ------- Run | Yrd Mat Mat Min Mat Fac Low Combat Hostiles Destroyed 54 | . 11 16 . 11 16 . Guns 27 | . 11 9 . 4 3 . Cannons 25 | . . 7 . 6 12 . AOE 1 | . . . . . 1 . Classes Destroyed 11 | . 2 4 . 4 1 . Worker 3 | . . 1 . . 2 . Builder 1 | . . 1 . . . . Recycler 4 | . . . . 1 3 . Operator 1 | . . . . 1 . . Watcher 6 | . . 4 . . 2 . Swarmer 25 | . 3 10 . 5 7 . Grunt 20 | . 8 2 . 4 6 . Sentry 5 | . . 4 . . 1 . Hunter 2 | . . . . 1 1 . Programmer 1 | . . . . . 1 . Heavy 1 | . . . . 1 . . Best Kill Streak 7 | . 3 5 . 3 7 . Combat Bots Only 5 | . 3 5 . 3 5 . Max Kills in Single Turn 4 | . 2 2 . 2 4 . Gunslinging 1 | . 1 . . . . . Exploded 1 | . . . . . 1 . Melee . | . . . . . . . Uniques/NPCs Destroyed . | . . . . . . . Combat | -11 -10 -9 -9 -8 -7 -7 -------- Run | Yrd Mat Mat Min Mat Fac Low Hostile Shots Fired 399 | . 52 80 . 70 169 28 Missed 134 | . 11 23 . 19 68 13 Hits 265 | . 41 57 . 51 101 15 Projectile 265 | . 41 57 . 51 101 15 Critical Strikes 5 | . 1 1 . 1 1 1 Damage Taken 3742 | . 457 590 . 875 1550 270 Core 968 | . 75 50 . 117 470 256 Absorbed by Shields . | . . . . . . . Redirected to Shielding 3 | . . 3 . . . . Regen/Repaired (Parts) 142 | . 78 64 . . . . Core Remaining (%) 83 | 100 70 . 87 78 . . Volleys Fired 137 | . 39 31 1 31 35 . Largest 3 | . 2 3 1 3 3 . Hottest 161 | . 60 151 30 161 128 . Shots Fired 325 | . 78 79 1 70 97 . Gun 189 | . 78 47 . 29 35 . Cannon 136 | . . 32 1 41 62 . Launcher . | . . . . . . . Special . | . . . . . . . Kinetic 165 | . 39 31 1 30 64 . Thermal 134 | . 39 28 . 40 27 . Explosive . | . . . . . . . Electromagnetic 26 | . . 20 . . 6 . Robot Hit Streak 14 | . 8 7 . 10 14 . Robot Miss Streak 8 | . 6 8 . 8 7 . Penetration Max . | . . . . . . . Secondary Targets 2 | . 2 . . . . . Max Gunslinging Chain 1 | . 1 . . . . . Shots Hit Robots 194 | . 42 42 . 47 63 . Core Hits 148 | . 20 29 . 40 59 . Critical Kills 1 | . . . . 1 . . Critical Parts Destroyed . | . . . . . . . Critical Strikes 2 | . . . . 2 . . Burn 1 | . . . . 1 . . Meltdown 1 | . . . . 1 . . Melee Attacks . | . . . . . . . Impact . | . . . . . . . Slashing . | . . . . . . . Piercing . | . . . . . . . Sneak Attacks . | . . . . . . . Combat Hostiles . | . . . . . . . Follow-up Attacks . | . . . . . . . Damage Inflicted 4198 | . 555 766 . 991 1886 . Guns 1581 | . 555 315 . 340 371 . Cannons 2038 | . . 363 . 651 1024 . Explosions 572 | . . 88 . . 484 . Melee . | . . . . . . . Ramming 7 | . . . . . 7 . Kinetic 1967 | . 284 269 . 479 935 . Thermal 1420 | . 271 257 . 512 380 . Explosive 484 | . . . . . 484 . Electromagnetic 320 | . . 240 . . 80 . Impact . | . . . . . . . Slashing . | . . . . . . . Piercing . | . . . . . . . Highest Corruption 3 | . . . . . 3 3 Average Corruption 2 | . . . . . 2 3 Corruption Purged . | . . . . . . . Corruption Blocked . | . . . . . . . Effects 5 | . . . . . 3 2 Message Errors 1 | . . . . . . 1 Matter Fused 1 | . . . . . 1 . Heat Flow Errors 1 | . . . . . . 1 Energy Discharges 2 | . . . . . 2 . Overload Shots . | . . . . . . . Overflow Damage 20 | . . . . 2 18 . Projectiles 2 | . . . . 2 . . Explosions 18 | . . . . . 18 . Melee . | . . . . . . . Knockbacks 18 | . . 2 . 3 13 . Impact . | . . . . . . . Kinetic 17 | . . 2 . 3 12 . Secondary 1 | . . . . . 1 . Self-Inflicted Damage 227 | . . 24 . . 203 . Shots 4 | . . 1 . . 3 . Rammed . | . . . . . . . Targets Rammed 1 | . . . . . 1 . Kicked 1 | . . . . . 1 . Crushed . | . . . . . . . Highest Temperature 412 | . 78 412 . 374 258 241 Average Temperature 112 | . 31 105 . 157 94 108 Received Heat Transfer 1137 | . 222 120 . 144 519 132 Effects 3 | . . 1 . 2 . . Shutdowns 1 | . . 1 . . . . Interference 1 | . . . . 1 . . Short Circuit 1 | . . . . 1 . . Siege Activations . | . . . . . . . Martial Activations . | . . . . . . . Shielding Activations . | . . . . . . . Robots Disrupted . | . . . . . . . Combat Hostiles . | . . . . . . . Robots Corrupted . | . . . . . . . Combat Hostiles . | . . . . . . . Parts Fried . | . . . . . . . Impact Corruptions . | . . . . . . . Robots Melted 1 | . . . . 1 . . Combat Hostiles 1 | . . . . 1 . . Parts Melted 5 | . . . . 5 . . Heat Transferred 2920 | . 600 581 . 1073 666 . Parts Sabotaged . | . . . . . . . Parts Stolen . | . . . . . . . Parts Stripped . | . . . . . . . Power Chain Reactions 2 | . . 2 . . . . Alert | -11 -10 -9 -9 -8 -7 -7 ------- Run | Yrd Mat Mat Min Mat Fac Low Maximum Alert Level 1 | . . 1 . . 1 . Low Security (%) 89 | 100 100 67 100 100 85 . Level 1 10 | . . 32 . . 14 . Level 2 . | . . . . . . . Level 3 . | . . . . . . . Level 4 . | . . . . . . . Level 5 . | . . . . . . . High Security . | . . . . . . . Max Security . | . . . . . . . Peak Influence 333 | . 169 295 98 91 333 . Initial 98 | . . 62 98 . 30 . Average 74 | . 64 153 29 26 92 . Influence Increases 1784 | . 299 465 . 301 629 90 Destroy 0b10 Robot/C 1080 | . 220 320 . 220 320 . Destroy 0b10 Robot/NC 75 | . . 30 . 10 35 . Destroy Leader 242 | . 40 88 . 40 74 . Successful Hack 54 | . 24 3 . 15 12 . Disable Machine 90 | . 15 . . . 75 . Destroy Structure 48 | . . 9 . 1 38 . Lose Combat Pursuer 195 | . . 15 . 15 75 90 Influence Decreases 1599 | . 150 361 253 234 417 184 Entered New Map 383 | . . 87 155 . 37 104 Time Decay 996 | . 140 254 98 204 230 70 Lost Part 220 | . 10 20 . 30 150 10 Squads Dispatched 11 | . 2 1 1 1 6 . Investigation 6 | . 1 . 1 . 4 . Extermination 1 | . . . . . 1 . Reinforcement 4 | . 1 1 . 1 1 . Assault . | . . . . . . . Garrison . | . . . . . . . Intercept . | . . . . . . . Searches Triggered . | . . . . . . . Construction Impeded . | . . . . . . . Haulers Reinforced . | . . . . . . . Active Scanning Responses . | . . . . . . . Cargo Convoy Interrupts . | . . . . . . . Stealth | -11 -10 -9 -9 -8 -7 -7 --------- Run | Yrd Mat Mat Min Mat Fac Low Distress Signals 5 | . . 2 . 1 2 . Communications Jammed . | . . . . . . . Distress Signals . | . . . . . . . Times Spotted 96 | . 16 24 . 17 32 7 Peak Tracking Total 9 | . 3 7 . 5 9 4 Tactical Retreats 10 | . . 1 . 1 5 3 Traps | -11 -10 -9 -9 -8 -7 -7 ------- Run | Yrd Mat Mat Min Mat Fac Low Traps Triggered 1 | . . . . . 1 . Indirectly . | . . . . . . . Trap Hack Attempts . | . . . . . . . Triggered . | . . . . . . . Disarmed . | . . . . . . . Reprogrammed . | . . . . . . . Reused . | . . . . . . . Traps Extracted . | . . . . . . . Installed . | . . . . . . . Triggered . | . . . . . . . Most Traps Carried 1 | . . . 1 1 . . Machines | -11 -10 -9 -9 -8 -7 -7 ---------- Run | Yrd Mat Mat Min Mat Fac Low Machines Disabled 6 | . 1 . . . 5 . Max in Single Turn 3 | . 1 . . . 3 . Machines Repaired . | . . . . . . . Machines Dismantled . | . . . . . . . Machines Sabotaged . | . . . . . . . Overloaded Fab Kills . | . . . . . . . Hacking | -11 -10 -9 -9 -8 -7 -7 --------- Run | Yrd Mat Mat Min Mat Fac Low Machines Accessed 11 | . 2 2 1 3 3 . Terminals 7 | . 1 1 . 2 3 . Fabricators . | . . . . . . . Repair Stations 2 | . 1 1 . . . . Recycling Units 1 | . . . . 1 . . Scanalyzers . | . . . . . . . Garrison Access . | . . . . . . . Total Hacks 35 | . 7 3 1 14 10 . Successful 23 | . 5 3 1 12 2 . Failed 12 | . 2 . . 2 8 . Catastrophic 1 | . . . . . 1 . Database Lockouts . | . . . . . . . Manual . | . . . . . . . Terminals 24 | . 5 1 . 8 10 . Fabricators . | . . . . . . . Repair Stations 4 | . 2 2 . . . . Recycling Units 6 | . . . . 6 . . Scanalyzers . | . . . . . . . Garrison Access . | . . . . . . . Terminal Hacks 14 | . 3 1 1 7 2 . Record 8 | . 3 . . 3 2 . Open Door 1 | . . . 1 . . . Alert Level 1 | . . . . 1 . . Locate Traps 1 | . . . . 1 . . Investigation Status 1 | . . . . 1 . . Hauler Manifests 1 | . . 1 . . . . Zone Layout 1 | . . . . 1 . . Fabricator Hacks . | . . . . . . . Repair Station Hacks 4 | . 2 2 . . . . Scan Component 2 | . 1 1 . . . . Repair 2 | . 1 1 . . . . Recycling Unit Hacks 5 | . . . . 5 . . Recycle Component 1 | . . . . 1 . . Process 1 | . . . . 1 . . Report Inventory 2 | . . . . 2 . . Retrieve Matter 1 | . . . . 1 . . Scanalyzer . | . . . . . . . Garrison Access Hacks . | . . . . . . . Unauthorized Hacks . | . . . . . . . Terminals . | . . . . . . . Fabricators . | . . . . . . . Repair Stations . | . . . . . . . Recycling Units . | . . . . . . . Scanalyzers . | . . . . . . . Garrison Access . | . . . . . . . Data Cores Recovered 1 | . . . . 1 . . Used . | . . . . . . . Hacking Detections 7 | . 1 1 . 2 3 . Full Trace Events 5 | . 1 . . 1 3 . Feedback Events . | . . . . . . . Feedback Blocked . | . . . . . . . Robot Schematics Acquired . | . . . . . . . Robots Built . | . . . . . . . Authchips . | . . . . . . . Time . | . . . . . . . Total Robot Build Rating . | . . . . . . . Part Schematics Acquired . | . . . . . . . Parts Built . | . . . . . . . Authchips . | . . . . . . . Time . | . . . . . . . Total Part Build Rating . | . . . . . . . Parts Repaired 2 | . 1 1 . . . . Time 45 | . 13 32 . . . . Parts Recycled 1 | . . . . 1 . . Recycled Matter 70 | . . . . 70 . . Retrieved Matter . | . . . . . . . Retrieved Components . | . . . . . . . Parts Scanalyzed . | . . . . . . . Part Schematics Acquired . | . . . . . . . Parts Damaged . | . . . . . . . Bothacking | -11 -10 -9 -9 -8 -7 -7 ------------ Run | Yrd Mat Mat Min Mat Fac Low Used RIF Installer . | . . . . . . . Robots Hacked . | . . . . . . . Non-combat . | . . . . . . . Combat . | . . . . . . . Robot Hacks Applied . | . . . . . . . Relay Couplers Released 3 | . . . . . 3 . Programmers 3 | . . . . . 3 . Fabnet Peak Effective % . | . . . . . . . Robots Rewired . | . . . . . . . Allies Hacked . | . . . . . . . Hacks Repelled . | . . . . . . . Allies | -11 -10 -9 -9 -8 -7 -7 -------- Run | Yrd Mat Mat Min Mat Fac Low Total Allies . | . . . . . . . Largest Group . | . . . . . . . Highest-Rated Group . | . . . . . . . Highest-Rated Ally . | . . . . . . . Total Orders . | . . . . . . . Ally Attacks . | . . . . . . . Total Damage . | . . . . . . . Kills . | . . . . . . . Allies Corrupted . | . . . . . . . Allies Melted . | . . . . . . . Intel | -11 -10 -9 -9 -8 -7 -7 ------- Run | Yrd Mat Mat Min Mat Fac Low Active Infowar (turns) 1053 | . . . . 415 638 . Sensors 1053 | . . . . 415 638 . Robot Analysis Total . | . . . . . . . Derelict Logs Recovered 2 | . . . 1 . . 1 Drone Launches . | . . . . . . . Drone Recoveries . | . . . . . . . Exploration | -11 -10 -9 -9 -8 -7 -7 ------------- Run | Yrd Mat Mat Min Mat Fac Low Turns Passed 2809 | 81 360 547 353 635 686 147 Spaces Moved 1759 | 61 178 294 118 370 451 287 Core 321 | 10 . . . . 24 287 Treads . | . . . . . . . Legs 1143 | 51 178 143 . 344 427 . Wheels . | . . . . . . . Hover 295 | . . 151 118 26 . . Flight . | . . . . . . . Fastest Speed 50 | 50 120 116 240 110 50 50 Average Speed 118 | 108 121 130 240 131 111 50 Slowest Speed 260 | 120 190 260 240 240 250 50 Overloaded Moves . | . . . . . . . Propulsion Burnouts . | . . . . . . . Robots Hopped . | . . . . . . . Potential Cave-ins . | . . . . . . . Cave-ins Triggered . | . . . . . . . Exploration Rate (%) 24 | 3 32 28 23 26 14 46 Regions Visited 6 Branch Regions 2 Pre-discovered Areas 1 | . . . . . . 1 Known Exits Taken 1 | . . . 1 . . . Unknown Exits Taken 5 | 1 1 1 . 1 1 . Scrap Searched . | . . . . . . . Spaces Dug . | . . . . . . . Terrain Destroyed 41 | . . 6 . . 35 . Melee . | . . . . . . . Projectile . | . . . . . . . AOE 41 | . . 6 . . 35 . Terrain Rammed . | . . . . . . . Walls Destroyed . | . . . . . . . Machines Disabled . | . . . . . . . Actions | -11 -10 -9 -9 -8 -7 -7 --------- Run | Yrd Mat Mat Min Mat Fac Low Total 2228 | 76 243 398 188 467 566 290 Wait 193 | . 18 27 61 24 62 1 Move 1753 | 60 177 293 117 369 450 287 Hop . | . . . . . . . Pick Up 59 | 10 6 18 3 15 6 1 Fast Attach . | . . . . . . . Attach 39 | 6 3 9 1 13 6 1 Detach 3 | . . 1 . 2 . . Swap 13 | . . 5 2 3 3 . Drop 30 | . . 14 3 10 3 . Fire 137 | . 39 31 1 31 35 . Melee . | . . . . . . . Ram . | . . . . . . . Kick 1 | . . . . . 1 . Crush . | . . . . . . . Escape Stasis . | . . . . . . . Rewire . | . . . . . . . Trap . | . . . . . . . Miscellaneous . | . . . . . . . Route ------- -11/Scrapyard -10/Materials -9/Materials -9/Mines -8/Materials -7/Factory -7/Lower Caves History --------- Turn | Location | Event 7 | -11/Scrapyard | Discovered new exit (range 15) 82 | -11/Scrapyard | Entered Materials 304 | -10/Materials | Build established: Mutant 382 | -10/Materials | Repaired Aluminum Leg 421 | -10/Materials | Discovered new exit (range 15) 442 | -10/Materials | Entered another Materials area 442 | -9/Materials | Evolved 2 slots: Utility x1, Weapon x1 764 | -9/Materials | Build established: Gunner 949 | -9/Materials | Repaired Lgt. EM Pulse Cannon 968 | -9/Materials | Discovered new exit (range 15) 989 | -9/Materials | Entered Mines 1059 | -9/Mines | Found a hidden stash of uninstalled traps 1116 | -9/Mines | Met a Derelict shopkeep closing up shop 1132 | -9/Mines | Identified exit to Materials 1342 | -9/Mines | Entered Materials 1342 | -8/Materials | Evolved 2 slots: Propulsion x1, Utility x1 1971 | -8/Materials | Discovered new exit (range 5) 1977 | -8/Materials | Entered Factory 1977 | -7/Factory | Evolved 2 slots: Power x1, Utility x1 2570 | -7/Factory | Discovered new exit (range 9) 2657 | -7/Factory | Core integrity fell below 50% 2663 | -7/Factory | Entered Lower Caves 2674 | -7/Lower Caves | Core integrity fell below 20% 2707 | -7/Lower Caves | Lost 16 parts (3p4n4u5w) 2707 | -7/Lower Caves | Spotted B-75 Beast 2810 | -7/Lower Caves | Destroyed by B-75 Beast with Heavy Plasma Cannon Last Messages --------------- 02654_ K-01 Serf destroyed. 02654_ Cryofiber Web destroyed. 02655_ U-05 Engineer builds a Door. 02655_ U-05 Engineer lays Concrete. 02657_ Acquired 51 matter. 02658_ U-05 Engineer lays Concrete. 02659_ Acquired 8 matter. 02660_ Acquired 6 matter. 02661_ K-01 Serf collects debris. 02661_ Penetrated by Slug. LOCATION=UNKNOWN GOAL=ESCAPE 02669_ Critical hit (Burn: +37). 02676_ Adv. Weight Redist. System destroyed. 02698_ Acquired derelict log, extracted data. World map updated: -6/Factory. 02731_ System corrupted: Heat flow error (+275). 02753_ FS-03S(S) destroyed. 02787_ Acquired Com. Battery. 02790_ J0F0ZD<&65XLWVANG6D6N%|,8&DBR1BB,X/YKTQ Map ----- +----------------------------------------------------+ | ?????? ??? ### #?? #????????????? | | ??????# ??? ## ### #??" %"#????????????? | | ??????# ???# ## ###### #??" ??????????????? | | ??????# ???# ## ## #??" ??????#?????????? | | ??????# ??## ## ## # ####+###### $#?????????? | | ?????## ### ## # ## #?????????? | | ????## ## #?????????? | | ????# ## ########?????????? | | ##??## ### ## #????????????????? | | ??## #### ### ##????????????????? | | # ??## ####### ### ##?????????????????? | | # #??## #???## ## ##??????????????????? | | #??## #???# # ###?????????????????? | | #?## #?# #### ##????????????????? | | ## ## #???# #????????????????? | | !% ## #????# ##????????????????? | | ### ########???? ##?????????????????? | | ?????### ##?????????# ##??????????????????? | | ???????# #??????????## #####???????????????????? | | ???????# #????????##?###????????????????????????? | | ???????# #???????## #????####???????????????????? | | ???????# #???????# ##### ##??????????????????? | | ???????# #????????# ## ##?????????????????? | | ???????# #?????????# #?????????????????? | | ???????# #?????????# ## #?????????????????? | | ???????# #?????????## @ #####?????????????????? | | ???##### #???######?## ##????????????????????? | | ??## ## #???# #### ##???????????????????? | | ?## ##??# ## ##??????????????????? | | ?# ##??# % #??????????????????? | | ?## #??# #??????????????????? | | ??### #??# ##?????????????????? | | ????## ##?# ## #?????????????????? | | ?????## ### #### ##?????????????????? | | ??????# ## ##?## ##?????????????????? | | ??????# ##?# #?????????????????? | | ??????# #?# #???????###???????? | | ??????### ##?# ####????# ##??????? | | ????????# ####?## BB ;## #?## ##?????? | | ????????# #????# BB ### #?????? | | ???????# #???# ""# #?????? | | ??????# ##### # #" ## #?????? | | ??????## ## ## #? %# ##????# | | ???????##### #### ### ## ##??# | | ???????????## #??# ####?# #### #?? | | ????????????## ?## #????# ??## #?# | | ?????????????# ?# ##???## #??# #? | | ????????????? ### ##???####??## ##? | | ????????????? #### ########### ##?# # | | ?????????????##### ## #### # | +----------------------------------------------------+ Best States ------------- Heat Dissipation 34 Energy Generation 23 Energy Capacity 365 Matter Stores 300 Matter Capacity 300 Sight Range 16 Robot Scan Range 15 Terrain Scan Density 10 Additional Mass Support 9 Base Temperature (-) 100 Armor Coverage 150 Core Shielding 20 Evasion (%) 63 Targeting Accuracy 6 Item Schematics ----------------- None Robot Schematics ------------------ None Fabricated ------------ Nothing Repaired ---------- Aluminum Leg | 13% | -10/Materials Lgt. EM Pulse Cannon | 8% | -9/Materials Alien Tech Used ----------------- None Achievements -------------- It's Just You More Dakka Please Novice Programmer Shopping List Challenges ------------ None Game ------ Seed MetafieldPitchforkCompressor Manual? 0 Play Time 00:50:44 Cumulative 3.1 hours Start 2025.09.27 @ 14:01:43 End 2025.09.27 @ 14:49:49 Sessions 1 Manual Loads 0 Difficulty Rogue Special Mode None Game No. 11 Rogue 9 Adventurer 2 Explorer 0 Win Type - Total 0 Types 0/0/0/0/0/0/0/0/0/0 Lore% 3 Gallery% 9 Achievement% 8 Wizard Run 0 Options --------- Layout 1 ASCII 0 Keyboard 0 Movement Numpad Keybinds 0 Fullscreen 1 Font 24/Smallcaps Map View 50x35 Zoom Use 0% Tactical HUD 1 Map Filters NONE Filters NONE Steam 1 RUN: aa1e5ce5-5a5e-429d-9c64-621c1eea1dc9